[Event "Titled Tuesday Blitz October 11 Early 2022"]
[White "Kaganskiy, Gleb"]
[Black "Martynenko, Ivan"]
[WhiteFideId "4132025"]
[BlackFideId "2053179"]
[WhiteElo "2165"]
[BlackElo "2220"]
[Result "1-0"]
[Round "05"]
[TimeControl "180+1"]
[Date "2022.10.12"]
[WhiteClock "0:00:31"]
[BlackClock "0:00:18"]

1. e4 {[%clk 0:02:49]}  c5 {[%clk 0:02:59]} 2. Nf3 {[%clk 0:02:49]}  d6 {[%clk 0:03:00]} 3. Bb5+ {[%clk 0:02:49]}  Bd7 {[%clk 0:03:00]} 4. Bxd7+ {[%clk 0:02:48]}  Qxd7 {[%clk 0:03:01]} 5. c4 {[%clk 0:02:48]}  Nc6 {[%clk 0:03:01]} 6. d4 {[%clk 0:02:40]}  cxd4 {[%clk 0:03:01]} 7. Nxd4 {[%clk 0:02:40]}  Nf6 {[%clk 0:03:01]} 8. Nc3 {[%clk 0:02:40]}  g6 {[%clk 0:03:01]} 9. b3 {[%clk 0:02:39]}  Bg7 {[%clk 0:03:01]} 10. Bb2 {[%clk 0:02:39]}  O-O {[%clk 0:02:56]} 11. O-O {[%clk 0:02:39]}  Nxd4 {[%clk 0:02:46]} 12. Qxd4 {[%clk 0:02:38]}  Qg4 {[%clk 0:02:46]} 13. Nd5 {[%clk 0:02:32]}  Rae8 {[%clk 0:01:20]} 14. f3 {[%clk 0:02:30]}  Qd7 {[%clk 0:01:08]} 15. Qxa7 {[%clk 0:02:27]}  Nxd5 {[%clk 0:01:08]} 16. Bxg7 {[%clk 0:02:26]}  Kxg7 {[%clk 0:01:02]} 17. exd5 {[%clk 0:02:22]}  f5 {[%clk 0:00:50]} 18. Rfe1 {[%clk 0:02:18]}  Rf7 {[%clk 0:00:49]} 19. Re6 {[%clk 0:02:15]}  Qc7 {[%clk 0:00:40]} 20. Qd4+ {[%clk 0:02:07]}  Kg8 {[%clk 0:00:39]} 21. Rae1 {[%clk 0:02:06]}  Qa5 {[%clk 0:00:34]} 22. R1e2 {[%clk 0:01:57]}  Qc7 {[%clk 0:00:33]} 23. h4 {[%clk 0:01:51]}  Rg7 {[%clk 0:00:20]} 24. Kh1 {[%clk 0:01:22]}  Kf8 {[%clk 0:00:20]} 25. Qf4 {[%clk 0:01:10]}  Kg8 {[%clk 0:00:17]} 26. h5 {[%clk 0:01:08]}  gxh5 {[%clk 0:00:17]} 27. Qxf5 {[%clk 0:01:08]}  Rf8 {[%clk 0:00:16]} 28. Qxh5 {[%clk 0:01:05]}  Rff7 {[%clk 0:00:16]} 29. Qh4 {[%clk 0:00:58]}  Qc5 {[%clk 0:00:16]} 30. Qf2 {[%clk 0:00:56]}  Qb4 {[%clk 0:00:16]} 31. Qe1 {[%clk 0:00:56]}  Qa3 {[%clk 0:00:16]} 32. Rxe7 {[%clk 0:00:53]}  Rxe7 {[%clk 0:00:16]} 33. Rxe7 {[%clk 0:00:53]}  Rxe7 {[%clk 0:00:17]} 34. Qxe7 {[%clk 0:00:54]}  Qc1+ {[%clk 0:00:17]} 35. Kh2 {[%clk 0:00:52]}  Qf4+ {[%clk 0:00:18]} 36. Kh3 {[%clk 0:00:50]}  Qf5+ {[%clk 0:00:17]} 37. Kg3 {[%clk 0:00:45]}  Qg6+ {[%clk 0:00:17]} 38. Kf2 {[%clk 0:00:43]}  Qc2+ {[%clk 0:00:17]} 39. Qe2 {[%clk 0:00:42]}  Qc3 {[%clk 0:00:18]} 40. g4 {[%clk 0:00:36]}  b5 {[%clk 0:00:16]} 41. cxb5 {[%clk 0:00:35]}  Qd4+ {[%clk 0:00:16]} 42. Kg2 {[%clk 0:00:35]}  Qxd5 {[%clk 0:00:17]} 43. b6 {[%clk 0:00:34]}  Qc5 {[%clk 0:00:17]} 44. b7 {[%clk 0:00:32]}  Qb6 {[%clk 0:00:18]} 45. Qe8+ {[%clk 0:00:31]} 1-0


[Site "https://www.chess.com"]

[Event "Titled Tuesday Blitz October 11 Early 2022"]
[White "Kazakov, Mikhail"]
[Black "Ambartsumova, Karina"]
[WhiteFideId "14102749"]
[BlackFideId "4166299"]
[WhiteElo "2413"]
[BlackElo "2299"]
[Result "1-0"]
[Round "05"]
[TimeControl "180+1"]
[Date "2022.10.12"]
[WhiteClock "0:00:10"]
[BlackClock "0:00:16"]

1. e4 {[%clk 0:03:00]}  e5 {[%clk 0:02:58]} 2. Nf3 {[%clk 0:02:56]}  Nc6 {[%clk 0:02:57]} 3. Bb5 {[%clk 0:02:55]}  Nf6 {[%clk 0:02:57]} 4. d3 {[%clk 0:02:53]}  d6 {[%clk 0:02:57]} 5. O-O {[%clk 0:02:51]}  Bd7 {[%clk 0:02:57]} 6. c3 {[%clk 0:02:51]}  g6 {[%clk 0:02:57]} 7. Na3 {[%clk 0:02:42]}  Bg7 {[%clk 0:02:57]} 8. Nc2 {[%clk 0:02:41]}  O-O {[%clk 0:02:55]} 9. Ne3 {[%clk 0:02:40]}  a6 {[%clk 0:02:54]} 10. Ba4 {[%clk 0:02:40]}  Nh5 {[%clk 0:02:47]} 11. Nd5 {[%clk 0:02:36]}  Kh8 {[%clk 0:02:42]} 12. h3 {[%clk 0:02:28]}  Rc8 {[%clk 0:02:21]} 13. Re1 {[%clk 0:02:21]}  Qe8 {[%clk 0:02:21]} 14. d4 {[%clk 0:02:17]}  Nxd4 {[%clk 0:02:08]} 15. Bxd7 {[%clk 0:01:57]}  Nxf3+ {[%clk 0:02:08]} 16. Qxf3 {[%clk 0:01:58]}  Qxd7 {[%clk 0:02:05]} 17. g4 {[%clk 0:01:58]}  Nf4 {[%clk 0:01:50]} 18. Nxf4 {[%clk 0:01:57]}  exf4 {[%clk 0:01:48]} 19. Bxf4 {[%clk 0:01:58]}  Rce8 {[%clk 0:01:29]} 20. Rad1 {[%clk 0:01:55]}  Qc6 {[%clk 0:01:30]} 21. Kg2 {[%clk 0:01:50]}  Qa4 {[%clk 0:01:23]} 22. a3 {[%clk 0:01:46]}  Re6 {[%clk 0:01:16]} 23. Bg3 {[%clk 0:01:28]}  Kg8 {[%clk 0:01:15]} 24. Qd3 {[%clk 0:01:24]}  Rfe8 {[%clk 0:00:55]} 25. f3 {[%clk 0:01:23]}  Qb3 {[%clk 0:00:46]} 26. Rd2 {[%clk 0:01:18]}  f5 {[%clk 0:00:36]} 27. gxf5 {[%clk 0:01:12]}  gxf5 {[%clk 0:00:36]} 28. Rde2 {[%clk 0:01:13]}  fxe4 {[%clk 0:00:30]} 29. fxe4 {[%clk 0:01:13]}  Rg6 {[%clk 0:00:28]} 30. Kh1 {[%clk 0:01:05]}  Qe6 {[%clk 0:00:28]} 31. Bf4 {[%clk 0:00:40]}  Rf8 {[%clk 0:00:28]} 32. Rf2 {[%clk 0:00:32]}  Be5 {[%clk 0:00:26]} 33. Ref1 {[%clk 0:00:28]}  Re8 {[%clk 0:00:13]} 34. Qd5 {[%clk 0:00:25]}  c6 {[%clk 0:00:09]} 35. Qxe6+ {[%clk 0:00:23]}  Rgxe6 {[%clk 0:00:10]} 36. Bxe5 {[%clk 0:00:18]}  Rxe5 {[%clk 0:00:11]} 37. Rf7 {[%clk 0:00:18]}  R8e7 {[%clk 0:00:12]} 38. Rxe7 {[%clk 0:00:18]}  Rxe7 {[%clk 0:00:11]} 39. Rf4 {[%clk 0:00:19]}  Kg7 {[%clk 0:00:11]} 40. Kg2 {[%clk 0:00:19]}  Kg6 {[%clk 0:00:09]} 41. Kf3 {[%clk 0:00:18]}  a5 {[%clk 0:00:07]} 42. Rg4+ {[%clk 0:00:17]}  Kf6 {[%clk 0:00:07]} 43. Rf4+ {[%clk 0:00:17]}  Ke6 {[%clk 0:00:08]} 44. Rh4 {[%clk 0:00:16]}  a4 {[%clk 0:00:08]} 45. Ke3 {[%clk 0:00:16]}  b5 {[%clk 0:00:07]} 46. Kd4 {[%clk 0:00:13]}  Kd7 {[%clk 0:00:06]} 47. Rh6 {[%clk 0:00:12]}  c5+ {[%clk 0:00:06]} 48. Kd3 {[%clk 0:00:12]}  Kc6 {[%clk 0:00:06]} 49. h4 {[%clk 0:00:11]}  Rd7 {[%clk 0:00:06]} 50. e5 {[%clk 0:00:10]}  Kd5 {[%clk 0:00:04]} 51. exd6 {[%clk 0:00:10]}  Rxd6 {[%clk 0:00:05]} 52. Rxh7 {[%clk 0:00:10]}  Ke5+ {[%clk 0:00:04]} 53. Kc2 {[%clk 0:00:09]}  Kf4 {[%clk 0:00:04]} 54. Rh5 {[%clk 0:00:08]}  c4 {[%clk 0:00:03]} 55. Rxb5 {[%clk 0:00:07]}  Kg4 {[%clk 0:00:03]} 56. Rc5 {[%clk 0:00:06]}  Kxh4 {[%clk 0:00:03]} 57. Rxc4+ {[%clk 0:00:06]}  Kg5 {[%clk 0:00:03]} 58. Rxa4 {[%clk 0:00:06]}  Kf6 {[%clk 0:00:04]} 59. Rb4 {[%clk 0:00:07]}  Ke7 {[%clk 0:00:05]} 60. a4 {[%clk 0:00:07]}  Kd7 {[%clk 0:00:05]} 61. a5 {[%clk 0:00:07]}  Kc7 {[%clk 0:00:05]} 62. Rb5 {[%clk 0:00:06]}  Ra6 {[%clk 0:00:05]} 63. b4 {[%clk 0:00:05]}  Kc6 {[%clk 0:00:06]} 64. Rb6+ {[%clk 0:00:05]}  Rxb6 {[%clk 0:00:05]} 65. axb6 {[%clk 0:00:06]}  Kxb6 {[%clk 0:00:06]} 66. Kb3 {[%clk 0:00:06]}  Kc6 {[%clk 0:00:06]} 67. c4 {[%clk 0:00:07]}  Kb6 {[%clk 0:00:07]} 68. c5+ {[%clk 0:00:08]}  Kc6 {[%clk 0:00:08]} 69. Kc4 {[%clk 0:00:08]}  Kc7 {[%clk 0:00:09]} 70. b5 {[%clk 0:00:09]}  Kb7 {[%clk 0:00:09]} 71. c6+ {[%clk 0:00:08]}  Kc7 {[%clk 0:00:10]} 72. Kc5 {[%clk 0:00:08]}  Kc8 {[%clk 0:00:11]} 73. b6 {[%clk 0:00:08]}  Kb8 {[%clk 0:00:12]} 74. Kd6 {[%clk 0:00:08]}  Kc8 {[%clk 0:00:12]} 75. b7+ {[%clk 0:00:08]}  Kb8 {[%clk 0:00:13]} 76. c7+ {[%clk 0:00:08]}  Kxb7 {[%clk 0:00:12]} 77. Kd7 {[%clk 0:00:09]}  Ka7 {[%clk 0:00:12]} 78. c8=Q {[%clk 0:00:09]}  Kb6 {[%clk 0:00:13]} 79. Qc6+ {[%clk 0:00:09]}  Ka5 {[%clk 0:00:14]} 80. Qb7 {[%clk 0:00:09]}  Ka4 {[%clk 0:00:15]} 81. Kc6 {[%clk 0:00:09]}  Ka3 {[%clk 0:00:15]} 82. Kc5 {[%clk 0:00:10]}  Ka2 {[%clk 0:00:16]} 83. Kc4 {[%clk 0:00:10]}  Ka1 {[%clk 0:00:17]} 84. Kc3 {[%clk 0:00:10]}  Ka2 {[%clk 0:00:16]} 85. Qb2# {[%clk 0:00:10]} 1-0


[Site "https://www.chess.com"]

[Event "Titled Tuesday Blitz October 11 Early 2022"]
[White "Kouskoutis, Georgios-Alexandros"]
[Black "Yuan, Qingyu"]
[WhiteFideId "4234049"]
[BlackFideId "8609772"]
[WhiteElo "2187"]
[BlackElo "2359"]
[Result "0-1"]
[Round "05"]
[TimeControl "180+1"]
[Date "2022.10.12"]
[WhiteClock "0:00:02"]
[BlackClock "0:00:23"]

1. c4 {[%clk 0:03:00]}  e6 {[%clk 0:02:59]} 2. g3 {[%clk 0:02:46]}  d5 {[%clk 0:02:59]} 3. Bg2 {[%clk 0:02:47]}  Nf6 {[%clk 0:02:59]} 4. Nf3 {[%clk 0:02:47]}  dxc4 {[%clk 0:02:59]} 5. Qa4+ {[%clk 0:02:46]}  Bd7 {[%clk 0:02:57]} 6. Qxc4 {[%clk 0:02:44]}  c5 {[%clk 0:02:57]} 7. Ne5 {[%clk 0:02:43]}  Qc8 {[%clk 0:02:57]} 8. O-O {[%clk 0:02:18]}  Nc6 {[%clk 0:02:56]} 9. Nxd7 {[%clk 0:02:17]}  Qxd7 {[%clk 0:02:56]} 10. Qc2 {[%clk 0:02:08]}  Rc8 {[%clk 0:02:53]} 11. Nc3 {[%clk 0:02:07]}  Be7 {[%clk 0:02:50]} 12. d3 {[%clk 0:02:07]}  O-O {[%clk 0:02:50]} 13. b3 {[%clk 0:02:00]}  Rfd8 {[%clk 0:02:49]} 14. Bb2 {[%clk 0:01:59]}  Nd4 {[%clk 0:02:36]} 15. Qd1 {[%clk 0:01:44]}  h5 {[%clk 0:02:31]} 16. h3 {[%clk 0:01:39]}  b6 {[%clk 0:02:29]} 17. Rc1 {[%clk 0:01:39]}  Bf8 {[%clk 0:02:09]} 18. Ne4 {[%clk 0:01:10]}  Nxe4 {[%clk 0:02:05]} 19. Bxe4 {[%clk 0:01:11]}  g6 {[%clk 0:02:02]} 20. e3 {[%clk 0:00:59]}  Nb5 {[%clk 0:02:01]} 21. Qe2 {[%clk 0:00:43]}  Bg7 {[%clk 0:01:59]} 22. Rfd1 {[%clk 0:00:36]}  Nd6 {[%clk 0:01:53]} 23. Bg2 {[%clk 0:00:34]}  Nf5 {[%clk 0:01:52]} 24. a3 {[%clk 0:00:28]}  Qe7 {[%clk 0:01:51]} 25. Bxg7 {[%clk 0:00:26]}  Kxg7 {[%clk 0:01:51]} 26. Qb2+ {[%clk 0:00:26]}  Qf6 {[%clk 0:01:47]} 27. Qxf6+ {[%clk 0:00:24]}  Kxf6 {[%clk 0:01:48]} 28. Bb7 {[%clk 0:00:24]}  Rc7 {[%clk 0:01:47]} 29. Be4 {[%clk 0:00:24]}  Nd6 {[%clk 0:01:45]} 30. Bf3 {[%clk 0:00:21]}  Rdc8 {[%clk 0:01:34]} 31. Kf1 {[%clk 0:00:18]}  Nb5 {[%clk 0:01:33]} 32. a4 {[%clk 0:00:17]}  Nd6 {[%clk 0:01:32]} 33. Ke2 {[%clk 0:00:17]}  Nf5 {[%clk 0:01:24]} 34. Be4 {[%clk 0:00:16]}  Nd6 {[%clk 0:01:23]} 35. Bf3 {[%clk 0:00:15]}  Ke7 {[%clk 0:01:22]} 36. Rd2 {[%clk 0:00:13]}  Nf5 {[%clk 0:01:19]} 37. Be4 {[%clk 0:00:12]}  Nd6 {[%clk 0:01:19]} 38. Bf3 {[%clk 0:00:12]}  Rd7 {[%clk 0:01:17]} 39. Rdc2 {[%clk 0:00:11]}  Rcd8 {[%clk 0:01:16]} 40. Bc6 {[%clk 0:00:11]}  Rc7 {[%clk 0:01:16]} 41. Bf3 {[%clk 0:00:11]}  Rdc8 {[%clk 0:01:17]} 42. d4 {[%clk 0:00:09]}  c4 {[%clk 0:01:08]} 43. bxc4 {[%clk 0:00:09]}  Nxc4 {[%clk 0:01:08]} 44. Bb7 {[%clk 0:00:07]}  Rxb7 {[%clk 0:01:05]} 45. Rxc4 {[%clk 0:00:07]}  Rxc4 {[%clk 0:01:04]} 46. Rxc4 {[%clk 0:00:08]}  Kd7 {[%clk 0:01:01]} 47. Kd3 {[%clk 0:00:08]}  b5 {[%clk 0:00:58]} 48. axb5 {[%clk 0:00:07]}  Rxb5 {[%clk 0:00:59]} 49. Ra4 {[%clk 0:00:07]}  a5 {[%clk 0:00:53]} 50. Ke4 {[%clk 0:00:07]}  Kc6 {[%clk 0:00:52]} 51. g4 {[%clk 0:00:07]}  Kb6 {[%clk 0:00:51]} 52. f4 {[%clk 0:00:05]}  h4 {[%clk 0:00:50]} 53. g5 {[%clk 0:00:04]}  Rb3 {[%clk 0:00:47]} 54. Kf3 {[%clk 0:00:04]}  Kb5 {[%clk 0:00:47]} 55. Ra1 {[%clk 0:00:04]}  a4 {[%clk 0:00:47]} 56. Kg4 {[%clk 0:00:03]}  Rxe3 {[%clk 0:00:46]} 57. Kxh4 {[%clk 0:00:03]}  a3 {[%clk 0:00:43]} 58. Rb1+ {[%clk 0:00:03]}  Kc4 {[%clk 0:00:43]} 59. Rb7 {[%clk 0:00:03]}  a2 {[%clk 0:00:37]} 60. Rc7+ {[%clk 0:00:03]}  Kb4 {[%clk 0:00:23]} 61. Rb7+ {[%clk 0:00:03]}  Ka3 {[%clk 0:00:23]} 62. Ra7+ {[%clk 0:00:03]}  Kb2 {[%clk 0:00:23]} 63. Rb7+ {[%clk 0:00:02]}  Rb3 {[%clk 0:00:23]} 0-1


[Site "https://www.chess.com"]

[Event "Titled Tuesday Blitz October 11 Early 2022"]
[White "Krishnan, Varun"]
[Black "Pakleza, Zbigniew"]
[WhiteFideId "5054508"]
[BlackFideId "1119290"]
[WhiteElo "2630"]
[BlackElo "2811"]
[Result "0-1"]
[Round "05"]
[TimeControl "180+1"]
[Date "2022.10.12"]
[WhiteClock "0:00:02"]
[BlackClock "0:00:07"]

1. e4 {[%clk 0:03:00]}  d6 {[%clk 0:03:00]} 2. d4 {[%clk 0:02:59]}  Nf6 {[%clk 0:03:00]} 3. Nc3 {[%clk 0:02:59]}  c6 {[%clk 0:03:01]} 4. Nf3 {[%clk 0:02:57]}  Bg4 {[%clk 0:03:01]} 5. h3 {[%clk 0:02:55]}  Bh5 {[%clk 0:03:00]} 6. Be2 {[%clk 0:02:55]}  e6 {[%clk 0:03:00]} 7. O-O {[%clk 0:02:55]}  d5 {[%clk 0:02:59]} 8. e5 {[%clk 0:02:49]}  Nfd7 {[%clk 0:02:59]} 9. a4 {[%clk 0:02:48]}  c5 {[%clk 0:02:59]} 10. Be3 {[%clk 0:02:40]}  Nc6 {[%clk 0:02:58]} 11. dxc5 {[%clk 0:02:33]}  Bxf3 {[%clk 0:02:54]} 12. Bxf3 {[%clk 0:02:33]}  Ndxe5 {[%clk 0:02:55]} 13. Nb5 {[%clk 0:02:21]}  Be7 {[%clk 0:02:04]} 14. c3 {[%clk 0:02:09]}  O-O {[%clk 0:01:49]} 15. b4 {[%clk 0:02:08]}  a5 {[%clk 0:01:47]} 16. Bd2 {[%clk 0:01:54]}  Nc4 {[%clk 0:01:40]} 17. Be2 {[%clk 0:01:50]}  Bf6 {[%clk 0:01:10]} 18. Rb1 {[%clk 0:01:33]}  Nxd2 {[%clk 0:01:07]} 19. Qxd2 {[%clk 0:01:30]}  axb4 {[%clk 0:01:08]} 20. cxb4 {[%clk 0:01:29]}  Rxa4 {[%clk 0:01:08]} 21. Nd6 {[%clk 0:01:28]}  Qa8 {[%clk 0:01:03]} 22. b5 {[%clk 0:01:01]}  Nd4 {[%clk 0:00:52]} 23. Bd3 {[%clk 0:00:57]}  g6 {[%clk 0:00:36]} 24. Rfc1 {[%clk 0:00:53]}  Be7 {[%clk 0:00:27]} 25. b6 {[%clk 0:00:42]}  Rd8 {[%clk 0:00:21]} 26. Nb5 {[%clk 0:00:21]}  Ra2 {[%clk 0:00:21]} 27. Qe3 {[%clk 0:00:18]}  Nxb5 {[%clk 0:00:21]} 28. Bxb5 {[%clk 0:00:17]}  Qa5 {[%clk 0:00:18]} 29. c6 {[%clk 0:00:15]}  bxc6 {[%clk 0:00:19]} 30. Rxc6 {[%clk 0:00:13]}  Ra1 {[%clk 0:00:07]} 31. Rcc1 {[%clk 0:00:09]}  Rxb1 {[%clk 0:00:06]} 32. Rxb1 {[%clk 0:00:10]}  d4 {[%clk 0:00:06]} 33. Qe5 {[%clk 0:00:04]}  Qxb6 {[%clk 0:00:06]} 34. Bd3 {[%clk 0:00:04]}  Qd6 {[%clk 0:00:06]} 35. Qb5 {[%clk 0:00:04]}  Kg7 {[%clk 0:00:05]} 36. Qb7 {[%clk 0:00:04]}  Rd7 {[%clk 0:00:05]} 37. Qf3 {[%clk 0:00:04]}  Bf6 {[%clk 0:00:05]} 38. g3 {[%clk 0:00:03]}  h5 {[%clk 0:00:05]} 39. h4 {[%clk 0:00:03]}  Qd5 {[%clk 0:00:05]} 40. Be4 {[%clk 0:00:02]}  Qc5 {[%clk 0:00:05]} 41. Rd1 {[%clk 0:00:03]}  Be7 {[%clk 0:00:04]} 42. Rd3 {[%clk 0:00:03]}  f5 {[%clk 0:00:05]} 43. Kg2 {[%clk 0:00:04]}  fxe4 {[%clk 0:00:05]} 44. Qxe4 {[%clk 0:00:05]}  Qd5 {[%clk 0:00:06]} 45. Qxd5 {[%clk 0:00:05]}  Rxd5 {[%clk 0:00:06]} 46. Kf3 {[%clk 0:00:05]}  Bf6 {[%clk 0:00:06]} 47. Ke4 {[%clk 0:00:06]}  Kf7 {[%clk 0:00:07]} 48. f4 {[%clk 0:00:06]}  Ke7 {[%clk 0:00:07]} 49. Ra3 {[%clk 0:00:07]}  Rd7 {[%clk 0:00:07]} 50. Kd3 {[%clk 0:00:07]}  Rc7 {[%clk 0:00:07]} 51. Ra6 {[%clk 0:00:06]}  Rc3+ {[%clk 0:00:06]} 52. Kd2 {[%clk 0:00:05]}  Rxg3 {[%clk 0:00:07]} 53. Ra7+ {[%clk 0:00:06]}  Kd6 {[%clk 0:00:07]} 54. Ra6+ {[%clk 0:00:07]}  Kd5 {[%clk 0:00:08]} 55. Rb6 {[%clk 0:00:07]}  Bxh4 {[%clk 0:00:07]} 56. f5 {[%clk 0:00:07]}  gxf5 {[%clk 0:00:07]} 57. Rb7 {[%clk 0:00:06]}  Bg5+ {[%clk 0:00:07]} 58. Ke2 {[%clk 0:00:05]}  d3+ {[%clk 0:00:07]} 59. Kf2 {[%clk 0:00:06]}  h4 {[%clk 0:00:08]} 60. Rb3 {[%clk 0:00:05]}  e5 {[%clk 0:00:08]} 61. Rb5+ {[%clk 0:00:04]}  Ke6 {[%clk 0:00:08]} 62. Rb6+ {[%clk 0:00:04]}  Kf7 {[%clk 0:00:08]} 63. Rb5 {[%clk 0:00:05]}  Bf6 {[%clk 0:00:06]} 64. Rb7+ {[%clk 0:00:04]}  Kg6 {[%clk 0:00:07]} 65. Rb8 {[%clk 0:00:04]}  e4 {[%clk 0:00:07]} 66. Rg8+ {[%clk 0:00:03]}  Bg7 {[%clk 0:00:08]} 67. Rb8 {[%clk 0:00:03]}  Bd4+ {[%clk 0:00:08]} 68. Ke1 {[%clk 0:00:02]}  Be3 {[%clk 0:00:07]} 0-1


[Site "https://www.chess.com"]

[Event "Titled Tuesday Blitz October 11 Early 2022"]
[White "Krzywda, Andrzej"]
[Black "Djokic, Mihailo"]
[WhiteFideId "1114565"]
[BlackFideId "976440"]
[WhiteElo "2149"]
[BlackElo "2315"]
[Result "0-1"]
[Round "05"]
[TimeControl "180+1"]
[Date "2022.10.12"]
[WhiteClock "0:00:05"]
[BlackClock "0:00:34"]

1. d4 {[%clk 0:03:00]}  Nf6 {[%clk 0:02:59]} 2. c4 {[%clk 0:03:01]}  g6 {[%clk 0:02:59]} 3. Nc3 {[%clk 0:03:00]}  Bg7 {[%clk 0:02:59]} 4. e4 {[%clk 0:03:00]}  d6 {[%clk 0:03:00]} 5. Nf3 {[%clk 0:03:00]}  O-O {[%clk 0:03:00]} 6. Be2 {[%clk 0:03:01]}  e5 {[%clk 0:02:58]} 7. O-O {[%clk 0:03:00]}  Nc6 {[%clk 0:02:58]} 8. d5 {[%clk 0:03:00]}  Ne7 {[%clk 0:02:57]} 9. b4 {[%clk 0:03:00]}  Ne8 {[%clk 0:02:56]} 10. c5 {[%clk 0:02:48]}  f5 {[%clk 0:02:56]} 11. Ng5 {[%clk 0:02:44]}  a5 {[%clk 0:02:45]} 12. cxd6 {[%clk 0:02:41]}  cxd6 {[%clk 0:02:43]} 13. bxa5 {[%clk 0:02:34]}  Qxa5 {[%clk 0:02:37]} 14. Bd2 {[%clk 0:02:30]}  fxe4 {[%clk 0:02:35]} 15. Nb5 {[%clk 0:02:04]}  Qd8 {[%clk 0:02:26]} 16. Bb4 {[%clk 0:01:58]}  e3 {[%clk 0:02:18]} 17. fxe3 {[%clk 0:01:54]}  Nf5 {[%clk 0:02:18]} 18. Ne6 {[%clk 0:01:40]}  Qb6 {[%clk 0:02:02]} 19. Bd2 {[%clk 0:01:13]}  Nxe3 {[%clk 0:01:56]} 20. Rxf8+ {[%clk 0:01:02]}  Bxf8 {[%clk 0:01:54]} 21. Bxe3 {[%clk 0:00:58]}  Qxe3+ {[%clk 0:01:55]} 22. Kh1 {[%clk 0:00:59]}  Be7 {[%clk 0:01:45]} 23. Bc4 {[%clk 0:00:51]}  Bd7 {[%clk 0:01:38]} 24. a4 {[%clk 0:00:45]}  b6 {[%clk 0:01:34]} 25. Ra3 {[%clk 0:00:42]}  Qe4 {[%clk 0:01:24]} 26. Qf1 {[%clk 0:00:36]}  Rc8 {[%clk 0:01:15]} 27. Rf3 {[%clk 0:00:33]}  Bxe6 {[%clk 0:01:07]} 28. dxe6 {[%clk 0:00:33]}  Ng7 {[%clk 0:00:53]} 29. Bb3 {[%clk 0:00:22]}  Nf5 {[%clk 0:00:45]} 30. Qd1 {[%clk 0:00:16]}  d5 {[%clk 0:00:39]} 31. h3 {[%clk 0:00:13]}  d4 {[%clk 0:00:35]} 32. g4 {[%clk 0:00:09]}  Nh4 {[%clk 0:00:34]} 33. Kh2 {[%clk 0:00:03]}  Nxf3+ {[%clk 0:00:34]} 34. Kg3 {[%clk 0:00:04]}  Qf4+ {[%clk 0:00:34]} 35. Kg2 {[%clk 0:00:04]}  Nh4+ {[%clk 0:00:35]} 36. Kg1 {[%clk 0:00:04]}  Qg3+ {[%clk 0:00:34]} 37. Kf1 {[%clk 0:00:04]}  Qg2+ {[%clk 0:00:35]} 38. Ke1 {[%clk 0:00:04]}  Nf3+ {[%clk 0:00:34]} 39. Qxf3 {[%clk 0:00:05]}  Qxf3 {[%clk 0:00:34]} 0-1


[Site "https://www.chess.com"]